bitfinex-derivatives/quotes_BTCF0:USTF0_20240815
["timestamp","ask_amount","ask_price","bid_price","bid_amount"]
[1723700155051,0.008,58603.0,58602.0,0.31689455]
[1723700155358,0.008,58603.0,58602.0,0.38438407]
[1723700155563,0.008,58603.0,58602.0,0.31689455]
[1723700157856,0.008,58603.0,58602.0,0.326571]
[1723700159950,0.008,58603.0,58602.0,0.31689455]
[1723700160560,0.008,58603.0,58602.0,0.12922809]
[1723700160858,0.008,58603.0,58602.0,0.061721]
[1723700161161,0.008,58603.0,58602.0,0.12922809]
[1723700161659,0.06772,58603.0,58602.0,0.12922809]
[1723700161958,0.06772,58603.0,58602.0,0.002]
[1723700162157,0.07726835,58603.0,58602.0,0.002]
[1723700162347,0.059727,58596.0,58595.0,0.06750709]
[1723700162657,0.059727,58596.0,58592.0,0.3608]
[1723700162658,0.05973,58593.0,58592.0,0.3608]
[1723700162852,0.15413,58593.0,58592.0,0.3608]
[1723700164555,0.15513,58593.0,58592.0,0.3608]
[1723700165156,0.16464855,58593.0,58592.0,0.3608]
[1723700166060,0.16664855,58593.0,58592.0,0.3608]
[1723700166656,0.059732,58591.0,58588.0,0.06776317]
[1723700166853,0.0944,58589.0,58588.0,0.06776317]
[1723700167452,0.0944,58589.0,58588.0,0.00025608]
[1723700167962,0.0944,58589.0,58588.0,0.06786665]
[1723700168465,0.0944,58589.0,58588.0,0.07086665]
[1723700168651,0.154134,58589.0,58588.0,0.00325608]
[1723700168852,0.154134,58589.0,58588.0,0.00525608]
[1723700169662,0.059734,58589.0,58588.0,0.00525608]
[1723700170453,0.059734,58589.0,58588.0,0.00325608]
[1723700170661,0.060734,58589.0,58588.0,0.00325608]
[1723700170859,0.062734,58589.0,58588.0,0.00025608]
[1723700171364,0.060734,58589.0,58588.0,0.00025608]
[1723700171570,0.060734,58589.0,58588.0,0.00225608]
[1723700172255,0.059734,58589.0,58588.0,0.00325608]
[1723700174061,0.059734,58589.0,58588.0,0.00125608]
[1723700174261,0.059734,58589.0,58588.0,0.00325608]
[1723700176257,0.059734,58589.0,58588.0,0.00125608]
[1723700176462,0.059734,58589.0,58588.0,0.00325608]
[1723700180068,0.059734,58589.0,58588.0,0.00125608]
[1723700180269,0.059734,58589.0,58588.0,0.00325608]
[1723700180763,0.059734,58589.0,58588.0,0.00125608]
[1723700180961,0.059734,58589.0,58588.0,0.00325608]
[1723700181364,0.059734,58589.0,58588.0,0.00125608]
[1723700181560,0.059734,58589.0,58588.0,0.00225608]
[1723700181765,0.059734,58589.0,58588.0,0.00325608]
[1723700184161,0.059734,58589.0,58588.0,0.00125608]
[1723700184471,0.059734,58589.0,58588.0,0.00325608]
[1723700185265,0.059734,58589.0,58588.0,0.05389832]
[1723700186676,0.059734,58589.0,58588.0,0.00325608]
[1723700187271,0.059734,58589.0,58588.0,0.05389832]
[1723700188062,0.059734,58589.0,58588.0,0.05289832]
[1723700188268,0.059734,58589.0,58588.0,0.00325608]
[1723700188673,0.0944,58590.0,58588.0,0.06299108]
[1723700188984,0.0944,58590.0,58589.0,0.05072647]
[1723700189180,0.0944,58590.0,58588.0,0.13060165]
[1723700190571,0.154133,58590.0,58588.0,0.12860165]
[1723700190878,0.154133,58590.0,58589.0,0.001]
[1723700191377,0.059734,58589.0,58588.0,0.00225608]
[1723700191883,0.059734,58589.0,58588.0,0.00325608]
[1723700192573,0.059734,58589.0,58588.0,0.00225608]
[1723700193175,0.11080986,58589.0,58588.0,0.00225608]
[1723700193676,0.11080986,58589.0,58588.0,0.00025608]
[1723700193677,0.059734,58589.0,58588.0,0.00025608]
[1723700194184,0.571774,58589.0,58588.0,0.00125608]
[1723700194570,0.059734,58589.0,58588.0,0.00125608]
[1723700195273,1.392308,58589.0,58588.0,0.00125608]
[1723700195674,1.41996955,58589.0,58588.0,0.00125608]
[1723700195872,1.51436955,58589.0,58588.0,0.00125608]
[1723700196075,1.486708,58589.0,58588.0,0.00125608]
[1723700196470,0.60022586,58589.0,58588.0,0.00125608]
[1723700196787,0.514934,58589.0,58588.0,0.00125608]
[1723700196979,0.514934,58589.0,58588.0,0.05211432]
[1723700198279,0.514934,58589.0,58588.0,0.00125608]
[1723700198687,0.154134,58589.0,58588.0,0.00125608]
[1723700198876,0.22235202,58589.0,58588.0,0.05208047]
[1723700199082,0.154134,58589.0,58588.0,0.05207901]
[1723700199387,0.154134,58589.0,58588.0,0.00125608]
[1723700199585,0.059734,58589.0,58588.0,0.00125608]
[1723700199782,0.154134,58589.0,58588.0,0.00125608]
[1723700202889,0.059734,58589.0,58588.0,0.00125608]
[1723700203091,0.154134,58589.0,58588.0,0.00125608]
[1723700204604,0.22234715,58589.0,58588.0,0.00125608]
[1723700204803,0.73438715,58589.0,58588.0,0.00125608]
[1723700206499,0.22234715,58589.0,58588.0,0.00125608]
[1723700208697,0.154134,58589.0,58588.0,0.00125608]
[1723700209202,0.213868,58589.0,58588.0,0.00125608]
[1723700211415,0.213868,58589.0,58588.0,1e-08]
[1723700211416,1.125908,58589.0,58588.0,1e-08]
[1723700212606,1.031508,58589.0,58588.0,1e-08]
[1723700212806,1.125908,58589.0,58588.0,1e-08]
[1723700219312,1.066174,58589.0,58588.0,1e-08]
[1723700219514,0.666174,58589.0,58588.0,1e-08]
[1723700219702,1.125908,58589.0,58588.0,1e-08]
[1723700220719,0.059737,58586.0,58585.0,0.05080977]
[1723700221016,0.574674,58586.0,58585.0,0.05080977]
[1723700221209,0.059739,58584.0,58583.0,0.00025608]
[1723700221520,0.154139,58584.0,58583.0,0.00025608]
[1723700222714,0.155139,58584.0,58583.0,0.00625608]
[1723700223616,0.155139,58584.0,58583.0,0.01125608]
[1723700224016,0.060739,58584.0,58583.0,0.01125608]
[1723700224217,0.22333053,58584.0,58583.0,0.01125608]
[1723700227014,0.23275711,58584.0,58583.0,0.01125608]
[1723700228434,0.23275711,58584.0,58567.0,0.101353]
[1723700228435,0.05975,58573.0,58567.0,0.101353]
[1723700228720,0.05116095,58571.0,58568.0,0.15856176]
[1723700228913,0.05116095,58569.0,58567.0,0.06924377]
[1723700229117,0.05116095,58569.0,58566.0,0.36098786]
[1723700229118,0.059756,58567.0,58566.0,0.36098786]
[1723700229810,0.059756,58567.0,58562.0,0.06777816]
[1723700229811,0.574712,58567.0,58562.0,0.06777816]
[1723700230019,0.0944,58563.0,58561.0,0.06803424]
[1723700230220,0.0944,58563.0,58561.0,0.00025608]
[1723700230221,0.47165202,58562.0,58561.0,0.00025608]
[1723700231020,0.47181676,58562.0,58561.0,0.00025608]
[1723700231319,0.42072574,58562.0,58561.0,0.00025608]
[1723700232023,0.42172574,58562.0,58561.0,0.00825608]
[1723700232219,0.42172574,58562.0,58561.0,0.02225608]
[1723700233022,0.42272574,58562.0,58561.0,0.02225608]
[1723700234425,0.42272574,58562.0,58561.0,0.02825608]
[1723700234925,0.51712574,58562.0,58561.0,0.02825608]
[1723700235712,0.52683239,58562.0,58561.0,0.02825608]
[1723700235920,0.16603239,58562.0,58561.0,0.02825608]
[1723700240117,0.16503239,58562.0,58561.0,0.01425608]
[1723700240427,0.52683239,58562.0,58561.0,0.02325608]
[1723700241624,0.52583239,58562.0,58561.0,0.00925608]
[1723700241828,0.52683239,58562.0,58561.0,0.02025608]
[1723700250529,0.36296474,58562.0,58561.0,0.08001808]
[1723700250737,0.45736474,58562.0,58561.0,0.08001808]
[1723700251128,0.45736474,58562.0,58561.0,3.85001808]
[1723700252136,0.51712574,58562.0,58561.0,3.79025608]
[1723700253829,0.15632574,58562.0,58561.0,3.79025608]
[1723700255235,0.15632574,58562.0,58561.0,0.02025608]
[1723700256534,0.15632574,58562.0,58561.0,0.07105356]
[1723700256931,0.15632574,58562.0,58561.0,0.02025608]
[1723700258234,0.20741676,58562.0,58561.0,0.02025608]
[1723700259240,0.15632574,58562.0,58561.0,0.02025608]
[1723700259834,0.15532574,58562.0,58561.0,0.01425608]
[1723700261647,0.15432574,58562.0,58561.0,0.01025608]
[1723700263545,0.22254035,58562.0,58561.0,0.01025608]
[1723700275752,0.28230135,58562.0,58561.0,0.01025608]
[1723700275947,0.21408674,58562.0,58561.0,0.01025608]
[1723700276155,0.21408674,58562.0,58561.0,0.07817633]
[1723700279660,0.059765,58558.0,58557.0,0.3608]
[1723700279852,0.21393,58558.0,58557.0,0.06792342]
[1723700280248,0.119534,58556.0,58555.0,0.06792342]
[1723700280449,0.213934,58556.0,58555.0,0.06792342]
[1723700280951,0.059773,58551.0,58550.0,0.00025608]
[1723700281163,0.48887127,58551.0,58550.0,0.00025608]
[1723700281562,0.66097127,58551.0,58550.0,0.00025608]
[1723700282062,0.66097127,58551.0,58550.0,0.06815146]
[1723700282265,0.66097127,58551.0,58550.0,0.00025608]
[1723700282558,0.592673,58551.0,58550.0,0.00025608]
[1723700282866,0.514973,58551.0,58550.0,0.00025608]
[1723700283057,0.00025608,58556.0,58550.0,0.00025608]
[1723700283058,0.06855435,58556.0,58551.0,0.059773]
[1723700283257,0.06855435,58556.0,58555.0,0.3608]
[1723700283258,0.00025608,58556.0,58555.0,0.3608]
[1723700283463,0.00025608,58556.0,58555.0,1.39773633]
[1723700283668,0.00025608,58556.0,58555.0,1.90926424]
[1723700283852,0.00025608,58556.0,58555.0,1.94235013]
[1723700284049,0.00016474,58562.0,58560.0,0.059763]
[1723700284252,0.00016474,58562.0,58561.0,0.3608]
[1723700285156,0.00016474,58562.0,58561.0,0.420562]
[1723700285455,0.09456474,58562.0,58561.0,0.420562]
[1723700285657,0.15432574,58562.0,58561.0,0.3608]
[1723700285862,0.16632574,58562.0,58561.0,0.3628]
[1723700286151,0.21748774,58562.0,58561.0,0.3628]
[1723700286358,0.21148774,58562.0,58561.0,0.3618]
[1723700287962,0.11108774,58562.0,58561.0,0.3628]
[1723700288661,0.11108774,58562.0,58561.0,0.3608]
[1723700288861,0.11108774,58562.0,58561.0,0.3628]
[1723700289161,0.05992574,58562.0,58561.0,0.3628]
[1723700289561,0.00016474,58562.0,58561.0,0.3628]
[1723700291164,0.00016474,58562.0,58561.0,0.43060112]
[1723700292961,0.00016474,58562.0,58561.0,0.06980112]
[1723700293167,0.00016474,58562.0,58561.0,0.43060112]
[1723700293471,0.00025608,58567.0,58561.0,1.61302536]
[1723700293472,0.051162,58566.0,58561.0,1.61302536]
[1723700293770,0.00025608,58567.0,58561.0,1.61302536]
[1723700293771,0.00025608,58567.0,58566.0,0.059757]
[1723700294065,0.00025608,58567.0,58566.0,0.420557]
[1723700294565,0.00025608,58567.0,58566.0,0.48832381]
[1723700295360,0.06001208,58567.0,58566.0,0.48832381]
[1723700295872,0.06101208,58567.0,58566.0,0.42856681]
[1723700296071,0.06601208,58567.0,58566.0,0.42856681]
[1723700297772,0.06201208,58567.0,58566.0,0.42856681]
[1723700298375,0.06201208,58567.0,58566.0,0.3608]
[1723700299169,0.06101208,58567.0,58566.0,0.3608]
[1723700299475,0.06001208,58567.0,58566.0,0.3608]
[1723700300864,0.00025608,58567.0,58566.0,0.3608]
[1723700301259,0.00025608,58567.0,58566.0,0.420557]
[1723700303474,0.00025608,58567.0,58566.0,0.43005758]
[1723700304068,0.00025608,58567.0,58566.0,0.420557]
[1723700304474,0.00025608,58567.0,58566.0,0.424557]
[1723700310088,0.09465608,58567.0,58566.0,0.424557]
[1723700310473,0.09465608,58567.0,58566.0,0.3648]
[1723700310680,0.15441208,58567.0,58566.0,0.3648]
[1723700311182,0.15441208,58567.0,58566.0,0.41560132]
[1723700311682,0.15441208,58567.0,58566.0,0.3648]
[1723700311886,0.06001208,58567.0,58566.0,0.3628]
[1723700312484,0.06001208,58567.0,58566.0,0.43056681]
[1723700312685,0.06101208,58567.0,58566.0,0.43056681]
[1723700312982,0.06101208,58567.0,58566.0,0.3608]
[1723700312983,0.11316538,58567.0,58566.0,0.3608]
[1723700313284,0.06201208,58567.0,58566.0,0.3608]
[1723700313489,0.06201208,58567.0,58566.0,0.42864486]
[1723700314378,0.06101208,58567.0,58566.0,0.42864486]
[1723700314678,0.06101208,58567.0,58566.0,0.06784486]
[1723700314979,0.06001208,58567.0,58566.0,0.06784486]
[1723700315386,0.11117736,58567.0,58566.0,0.06784486]
[1723700315587,0.11217736,58567.0,58566.0,0.06784486]
[1723700315788,0.06101208,58567.0,58566.0,0.06784486]
[1723700315983,0.06201208,58567.0,58566.0,0.06784486]
[1723700316492,0.11317736,58567.0,58566.0,0.06784486]
[1723700317375,0.11217736,58567.0,58566.0,0.06784486]
[1723700317792,0.11117736,58567.0,58566.0,0.06784486]
[1723700321481,0.11117736,58567.0,58563.0,0.45514926]
[1723700322790,0.05116528,58566.0,58563.0,0.45514926]
[1723700322985,0.06001208,58567.0,58563.0,0.3608]
[1723700322986,0.059759,58564.0,58563.0,0.3608]
[1723700323180,0.059762,58562.0,58560.0,0.08475859]
[1723700323381,0.059762,58561.0,58558.0,0.06793179]
[1723700323581,0.3608,58559.0,58558.0,0.06793179]
[1723700324196,0.059765,58558.0,58557.0,0.06793179]
[1723700324492,0.059771,58553.0,58552.0,0.05092567]
[1723700324676,0.059771,58553.0,58550.0,0.00025608]
[1723700324677,0.66512246,58553.0,58550.0,0.05118175]
[1723700325177,0.059773,58551.0,58550.0,0.05118175]
[1723700325376,0.059773,58551.0,58550.0,0.00025608]
[1723700325592,0.11090015,58551.0,58550.0,0.00025608]
[1723700326285,0.059773,58551.0,58550.0,0.00025608]
[1723700326586,0.05112715,58552.0,58550.0,0.00025608]
[1723700326787,0.3628,58553.0,58552.0,0.059772]
[1723700327181,0.3618,58553.0,58552.0,0.059772]
[1723700327582,0.001,58553.0,58552.0,0.11069767]
[1723700327782,0.001,58553.0,58552.0,0.420572]
[1723700327987,0.172,58558.0,58553.0,0.05977]
[1723700328190,0.172,58558.0,58556.0,0.05082204]
[1723700328585,0.059764,58560.0,58557.0,0.47138804]
[1723700329185,0.001,58558.0,58557.0,0.47138804]
[1723700330391,0.002,58558.0,58557.0,0.47138804]
[1723700330694,0.001,58558.0,58557.0,0.064766]
[1723700331003,0.059764,58560.0,58557.0,0.11558804]
[1723700331189,0.001,58558.0,58557.0,0.12158804]
[1723700332094,0.059764,58560.0,58557.0,0.11558804]
[1723700332301,0.060764,58560.0,58557.0,0.070766]
[1723700332592,0.060764,58560.0,58557.0,0.12158804]
[1723700333791,0.001,58558.0,58557.0,0.12158804]
[1723700334187,0.001,58558.0,58557.0,0.48238804]
[1723700334391,0.2361,58563.0,58559.0,0.059764]
[1723700334392,0.001,58560.0,58559.0,0.059764]
[1723700336690,0.2361,58563.0,58560.0,0.059763]
[1723700336896,0.2361,58563.0,58561.0,0.05082548]
[1723700337090,0.0814,58564.0,58561.0,0.05082548]
[1723700337599,0.3608,58565.0,58564.0,0.059759]
[1723700338392,0.00025608,58567.0,58566.0,0.059757]
[1723700338590,0.00025608,58567.0,58566.0,0.11057524]
[1723700340796,0.00525608,58567.0,58566.0,0.11057524]
[1723700342089,0.00525608,58567.0,58566.0,0.11058794]
[1723700342392,0.00525608,58567.0,58566.0,0.36774754]
[1723700342588,0.00525608,58567.0,58566.0,0.3169166]
[1723700343702,0.06501208,58567.0,58564.0,0.42856272]
[1723700343900,0.06501208,58567.0,58566.0,0.05082465]
[1723700344703,0.06001208,58567.0,58566.0,0.05082465]
[1723700345493,0.06301208,58567.0,58566.0,0.05082465]
[1723700346697,0.06501208,58567.0,58566.0,0.05082465]
[1723700348901,0.07474115,58567.0,58566.0,0.05082465]
[1723700349696,0.06501208,58567.0,58566.0,0.05082465]
[1723700349897,0.00525608,58567.0,58565.0,0.059758]
[1723700350098,0.00525608,58567.0,58566.0,0.059757]
[1723700350905,0.00525608,58567.0,58566.0,0.11057514]
[1723700351105,0.00225608,58567.0,58566.0,0.05081814]
[1723700351308,0.06201208,58567.0,58566.0,0.05081814]
[1723700351497,0.00225608,58567.0,58566.0,0.05081814]
[1723700351696,0.00425608,58567.0,58564.0,0.42856272]
[1723700352798,0.00525608,58567.0,58564.0,0.42856272]
[1723700353102,0.00525608,58567.0,58565.0,0.06776272]
[1723700353306,0.00525608,58567.0,58564.0,0.3608]
[1723700353307,0.00525608,58567.0,58566.0,0.059757]
[1723700353497,0.00325608,58567.0,58566.0,0.059757]
[1723700353900,0.00025608,58567.0,58566.0,0.059757]
[1723700354505,0.00525608,58567.0,58566.0,0.059757]
[1723700355816,0.00525608,58567.0,58564.0,0.42856272]
[1723700355817,0.059758,58565.0,58564.0,0.42856272]
[1723700356304,0.059758,58565.0,58564.0,0.3608]
[1723700356998,0.00325608,58567.0,58565.0,0.059758]
[1723700357194,0.00325608,58567.0,58566.0,0.059757]
[1723700357401,0.00025608,58567.0,58566.0,0.12752797]
[1723700357596,0.00025608,58567.0,58566.0,0.059757]
[1723700358317,0.00125608,58567.0,58566.0,0.059757]
[1723700358912,0.00325608,58567.0,58566.0,0.059757]
[1723700359300,0.00425608,58567.0,58566.0,0.059757]
[1723700360013,0.00325608,58567.0,58566.0,0.059757]
[1723700360213,0.00525608,58567.0,58566.0,0.059757]
[1723700362016,0.00525608,58567.0,58566.0,0.21096007]
[1723700362211,0.00525608,58567.0,58566.0,0.14451559]
[1723700362416,0.00525608,58567.0,58566.0,0.21096635]
[1723700363818,0.00525608,58567.0,58566.0,0.12620776]
[1723700364003,0.09965608,58567.0,58566.0,0.21099343]
[1723700364404,0.09965608,58567.0,58566.0,0.12620776]
[1723700366620,0.09965608,58567.0,58566.0,0.21101107]
[1723700367324,0.09965608,58567.0,58566.0,0.12620776]
[1723700371221,0.21053923,58567.0,58566.0,0.08482518]
[1723700373129,0.00525608,58567.0,58566.0,0.12646502]
[1723700373325,0.09965608,58567.0,58566.0,0.12646502]
[1723700373722,0.09965608,58567.0,58566.0,0.21130051]
[1723700374126,0.09965608,58567.0,58566.0,0.12646502]
[1723700375628,0.09965608,58567.0,58566.0,0.49679554]
[1723700375933,0.09965608,58567.0,58566.0,0.48726502]
[1723700376333,0.15078323,58567.0,58566.0,0.57214808]
[1723700376525,0.23628323,58567.0,58566.0,0.57214808]
[1723700377532,0.29603923,58567.0,58566.0,0.51239108]
[1723700379634,0.29603923,58567.0,58566.0,0.42750802]
[1723700379821,0.29603923,58567.0,58566.0,0.42750519]
[1723700380026,0.15078323,58567.0,58566.0,0.48726219]
[1723700380423,0.15078323,58567.0,58566.0,0.75284287]
[1723700381431,0.15078323,58567.0,58566.0,0.48726219]
[1723700381726,0.15078323,58567.0,58566.0,0.8377333]
[1723700381930,0.21053923,58567.0,58566.0,0.7779763]
[1723700382135,0.15941208,58567.0,58566.0,0.51239563]
[1723700382432,0.15941208,58567.0,58566.0,0.77797725]
[1723700383938,0.06501208,58567.0,58566.0,0.77797725]
[1723700387729,0.06501208,58567.0,58566.0,0.83773425]
[1723700387730,0.00525608,58567.0,58566.0,0.83773425]
[1723700387930,0.00525608,58567.0,58566.0,1.0094957]
[1723700388234,0.00525608,58567.0,58566.0,4.92821615]
[1723700388547,0.00525608,58567.0,58566.0,4.92821784]
[1723700388732,0.00525608,58567.0,58566.0,1.15821784]
[1723700389438,0.00525608,58567.0,58566.0,0.90156595]
[1723700389626,0.05646419,58567.0,58566.0,0.90156595]
[1723700390235,0.00525608,58567.0,58566.0,0.90156595]
[1723700391139,0.05646419,58567.0,58566.0,0.90156595]
[1723700391537,0.00525608,58567.0,58566.0,0.90156595]
[1723700392247,0.05646419,58567.0,58566.0,0.75283931]
[1723700392541,0.05646419,58567.0,58566.0,1.16713714]
[1723700392542,0.00525608,58567.0,58566.0,1.16713714]
[1723700392841,0.05646419,58567.0,58566.0,1.16713234]
[1723700393041,0.05646419,58567.0,58566.0,1.01841177]
[1723700393442,0.05646419,58567.0,58566.0,1.01843741]
[1723700393941,0.05646419,58567.0,58566.0,0.75286029]
[1723700394738,0.05646419,58567.0,58566.0,0.69310329]
[1723700394938,0.00525608,58567.0,58566.0,0.7780031]
[1723700396135,0.06501208,58567.0,58566.0,0.7780031]
[1723700396838,0.07486198,58567.0,58566.0,0.7780031]
[1723700397936,0.07486198,58567.0,58566.0,0.4172031]
[1723700398245,0.07486198,58567.0,58566.0,0.77806671]
[1723700399535,0.12607648,58567.0,58566.0,0.69317619]
[1723700400547,0.059758,58565.0,58564.0,0.0849189]
[1723700400736,0.295858,58565.0,58564.0,0.3505128]
[1723700400938,0.295858,58565.0,58564.0,0.2655939]
[1723700401436,0.363358,58565.0,58564.0,0.2655939]
[1723700401637,0.363358,58565.0,58564.0,0.3328379]
[1723700401638,0.05121755,58565.0,58564.0,0.3328379]
[1723700402035,0.05121755,58565.0,58564.0,0.33283833]
[1723700402234,0.05121755,58565.0,58564.0,0.39259733]
[1723700403244,0.05121755,58565.0,58564.0,0.33283833]
[1723700403740,0.11097555,58565.0,58564.0,0.33283833]
[1723700403942,0.11097555,58565.0,58564.0,0.41775855]
[1723700405640,0.11097555,58565.0,58564.0,0.41783243]
[1723700405841,0.20537555,58565.0,58564.0,0.41783243]
[1723700406145,0.154158,58565.0,58564.0,0.41783243]
[1723700407547,0.20537555,58565.0,58564.0,0.41783243]
[1723700408451,0.154158,58565.0,58564.0,0.33291221]
[1723700408854,0.154158,58565.0,58564.0,0.69371221]
[1723700409150,0.154158,58565.0,58564.0,0.6937028]
[1723700409746,0.059758,58565.0,58564.0,0.6937028]
[1723700409944,0.154158,58565.0,58564.0,0.90199851]
[1723700410253,0.154158,58565.0,58564.0,0.75326819]
[1723700411449,0.154158,58565.0,58564.0,0.47739987]
[1723700411749,0.154158,58565.0,58564.0,0.39246819]
[1723700412757,0.154158,58565.0,58564.0,0.39247215]
[1723700413045,0.154158,58565.0,58564.0,0.21180959]
[1723700413947,0.154158,58565.0,58564.0,0.15205059]
[1723700414147,0.154158,58565.0,58564.0,0.16075944]
[1723700414554,0.154158,58565.0,58564.0,0.16075895]
[1723700416045,0.154158,58565.0,58564.0,0.0849278]
[1723700416240,0.059759,58564.0,58563.0,0.0849278]
[1723700416450,0.350859,58564.0,58563.0,0.16077925]
[1723700417854,0.350859,58564.0,58563.0,0.16177925]
[1723700418744,0.350859,58564.0,58563.0,0.16277925]
[1723700421353,0.350859,58564.0,58563.0,0.07785145]
[1723700421844,0.0944,58564.0,58563.0,0.49215913]
[1723700422151,0.0944,58564.0,58563.0,0.61963792]
[1723700422549,0.0944,58564.0,58563.0,0.49215913]
[1723700422750,0.0944,58564.0,58563.0,0.35405606]
[1723700422942,0.0944,58564.0,58563.0,0.61963687]
[1723700423149,0.0944,58564.0,58563.0,0.67939687]
[1723700423456,0.0944,58564.0,58563.0,0.13718366]
[1723700423656,0.0944,58564.0,58563.0,0.67896853]
[1723700424049,0.0944,58564.0,58563.0,0.55148974]
[1723700427361,0.0944,58564.0,58563.0,0.91230574]
[1723700427761,0.0944,58564.0,58563.0,0.76357474]
[1723700427962,0.0944,58564.0,58563.0,0.91230582]
[1723700428354,0.1632,58564.0,58563.0,0.91230582]
[1723700428759,0.1632,58564.0,58563.0,0.49798366]
[1723700429058,0.222959,58564.0,58563.0,0.70381008]
[1723700429459,0.290259,58564.0,58563.0,0.70381008]
[1723700429856,0.34146321,58564.0,58563.0,0.78872794]
[1723700430958,0.34146321,58564.0,58563.0,0.52314152]
[1723700431952,0.34146321,58564.0,58563.0,0.44771786]
[1723700431953,0.290259,58564.0,58563.0,0.44771786]
[1723700433462,0.34146051,58564.0,58563.0,0.44771786]
[1723700434669,0.290259,58564.0,58563.0,0.3628]
[1723700436359,0.154159,58564.0,58563.0,0.3628]
[1723700444773,0.20535178,58564.0,58563.0,0.3628]
[1723700446761,0.20535178,58564.0,58559.0,0.08491786]
[1723700446762,0.059761,58562.0,58559.0,0.08491786]
[1723700446959,0.58322928,58560.0,58559.0,0.06796742]
[1723700447162,0.059764,58559.0,58558.0,0.06796742]
[1723700447371,0.28843293,58559.0,58558.0,0.06796742]
[1723700447669,0.059765,58558.0,58557.0,0.06796742]
[1723700447967,0.059766,58557.0,58556.0,0.06796742]
[1723700448167,0.154166,58557.0,58556.0,0.06796742]
[1723700448369,0.726252,58557.0,58556.0,0.06796742]
[1723700448668,0.726252,58557.0,58551.0,0.06796742]
[1723700448669,0.059769,58554.0,58551.0,0.06796742]
[1723700448868,0.059772,58551.0,58550.0,0.0682235]
[1723700449373,0.059772,58551.0,58550.0,0.00025608]
[1723700449672,0.059772,58551.0,58550.0,0.05117906]
[1723700449874,0.11090153,58551.0,58550.0,0.05117906]
[1723700450170,0.11090153,58551.0,58550.0,0.05617906]
[1723700450171,0.11190153,58551.0,58550.0,0.05617906]
[1723700450372,0.11190153,58551.0,58550.0,0.00525608]
[1723700450573,0.060772,58551.0,58550.0,0.00525608]
[1723700451470,0.061772,58551.0,58550.0,0.01225608]
[1723700451962,0.156172,58551.0,58550.0,0.01225608]
[1723700453273,0.156172,58551.0,58550.0,0.01325608]
[1723700454561,0.16586187,58551.0,58550.0,0.01325608]
[1723700454770,0.16486187,58551.0,58550.0,0.01125608]
[1723700455270,0.0954,58551.0,58550.0,0.06217906]
[1723700455461,0.0954,58551.0,58550.0,0.12195206]
[1723700455665,0.0954,58551.0,58550.0,0.07102908]
[1723700457174,0.001,58551.0,58550.0,0.07102908]
[1723700457373,0.0954,58551.0,58550.0,0.07102908]
[1723700459767,0.060772,58551.0,58550.0,0.01125608]
[1723700459968,0.155172,58551.0,58550.0,0.01125608]
[1723700460968,0.155172,58551.0,58550.0,0.01129608]
[1723700462364,0.155172,58551.0,58550.0,0.06213218]
[1723700464375,0.155172,58551.0,58550.0,0.01129608]
[1723700466079,0.155172,58551.0,58550.0,0.06213596]
[1723700466272,0.155172,58551.0,58550.0,0.01129608]
[1723700467477,0.155172,58551.0,58550.0,0.06213596]
[1723700467881,0.155172,58551.0,58550.0,0.01129608]
[1723700469277,0.214944,58551.0,58550.0,0.01129608]
[1723700469469,0.0954,58551.0,58546.0,0.05083988]
[1723700469676,0.3608,58547.0,58543.0,0.05083988]
[1723700469876,0.3608,58547.0,58541.0,0.3608]
[1723700469877,0.05978,58543.0,58542.0,0.05083988]
[1723700470391,0.059781,58542.0,58541.0,0.41163988]
[1723700470585,0.126381,58542.0,58541.0,0.3608]
[1723700471381,0.126381,58542.0,58541.0,0.41165257]
[1723700471583,0.126381,58542.0,58541.0,0.3608]
[1723700471778,0.126381,58542.0,58541.0,0.3698]
[1723700471779,0.127421,58542.0,58541.0,0.3698]
[1723700473990,0.128421,58542.0,58541.0,0.3698]
[1723700474879,0.13816821,58542.0,58541.0,0.3698]
[1723700476691,0.13816821,58542.0,58541.0,0.43776742]
[1723700482978,0.13816821,58542.0,58541.0,0.07696742]
[1723700489586,0.13816821,58542.0,58541.0,0.009]
[1723700492608,0.19794921,58542.0,58541.0,0.07691898]
[1723700492783,0.19794921,58542.0,58540.0,0.05111151]
[1723700492784,0.119564,58541.0,58540.0,0.05111151]
[1723700492982,0.119574,58537.0,58536.0,0.00025608]
[1723700493191,0.059791,58533.0,58532.0,0.06792859]
[1723700493396,0.059793,58531.0,58530.0,0.06792859]
[1723700493587,0.059793,58531.0,58523.0,0.3608]
[1723700493588,0.0944,58531.0,58529.0,0.06792859]
[1723700493788,0.215494,58530.0,58529.0,0.06792859]
[1723700493988,0.26664334,58530.0,58526.0,0.06792859]
[1723700494190,0.0944,58527.0,58526.0,0.06792859]
[1723700494889,0.154197,58527.0,58526.0,0.06792859]
[1723700495188,0.059837,58527.0,58526.0,0.06792859]
[1723700495487,0.059837,58527.0,58525.0,0.3608]
[1723700495699,0.154237,58527.0,58525.0,0.3608]
[1723700495893,0.09444,58527.0,58525.0,0.420599]
[1723700496291,0.09444,58527.0,58526.0,0.06790375]
[1723700496604,0.09444,58527.0,58525.0,0.420599]
[1723700496894,0.09444,58527.0,58526.0,0.06790438]
[1723700497194,0.10525492,58527.0,58526.0,0.06790438]
[1723700497391,0.10525492,58527.0,58526.0,0.0678955]
[1723700497595,0.00104,58527.0,58526.0,0.059798]
[1723700497793,0.0599237,58541.0,58533.0,0.059791]
[1723700497794,0.05114934,58538.0,58533.0,0.059791]
[1723700497995,0.188384,58540.0,58533.0,0.059791]
[1723700497996,0.09465608,58534.0,58533.0,0.059791]
[1723700498202,0.09465608,58534.0,58533.0,0.094391]
[1723700498987,0.09465608,58534.0,58533.0,0.094431]
[1723700499696,0.00025608,58534.0,58533.0,0.059831]
[1723700500493,0.06004608,58534.0,58533.0,4e-05]
[1723700500687,0.06104608,58534.0,58533.0,4e-05]
[1723700501294,0.06104608,58534.0,58533.0,0.06792448]
[1723700501498,0.06204608,58534.0,58533.0,0.06792448]
[1723700502301,0.06204608,58534.0,58533.0,4e-05]
[1723700502603,0.06204608,58534.0,58533.0,0.06792448]
[1723700503000,0.06204608,58534.0,58533.0,4e-05]
[1723700503396,0.06204608,58534.0,58533.0,0.06792448]
[1723700503598,0.06104608,58534.0,58533.0,0.06792448]
[1723700503796,0.06004608,58534.0,58533.0,0.06892448]
[1723700504803,0.06004608,58534.0,58533.0,0.00104]
[1723700505202,0.06004608,58534.0,58533.0,0.06893098]
[1723700505401,0.06004608,58534.0,58533.0,0.00104]
[1723700505810,0.00025608,58534.0,58533.0,0.973351]